[Event "74th Superior Womens Argentine-ch 2023"]
[Site "Buenos Aires"]
[Date "2023.11.24"]
[Round "4.3"]
[White "Encina, Guadalupe"]
[Black "Campos, Maria Jose"]
[Result "0-1"]
[ECO "C54"]
[WhiteElo "1877"]
[BlackElo "2208"]
[Annotator "RC"]
[PlyCount "64"]
[EventDate "2023.11.20"]
[EventType "swiss"]
[EventCountry "ARG"]
[SourceTitle "playchess.com"]
[Source "ChessBase"]
[SourceQuality "1"]
[TimeControl "5400+30"]

1. e4 {[%emt 0:02:03]} e5 {[%emt 0:00:32]} 2. Nf3 {[%emt 0:00:08]} Nc6 {[%emt 0:01:00]} 3. Bc4 {[%emt 0:00:10]} Nf6 {[%emt 0:01:25]} 4. d3 {[%emt 0:00:06]} Bc5 {[%emt 0:00:57]} 5. c3 {[%emt 0:00:07]} d6 {[%emt 0:00:57]} 6. O-O {[%emt 0:00:27]} a6 {[%emt 0:02:54]} 7. Bb3 {[%emt 0:00:14]} Ba7 {[%emt 0:02:17]} 8. Nbd2 {[%emt 0:00:19]} O-O {[%emt 0:06:39]} 9. h3 {[%emt 0:00:15]} Ne7 {[%emt 0:01:38]} 10. Re1 {[%emt 0:00:32]} Ng6 {[%emt 0:00:45]} 11. Nf1 {[%emt 0:00:10]} Be6 {[%emt 0:04:22]} 12. Bc2 {[%emt 0:04:51]} Qc8 {[%emt 0:07:01]} 13. Ng3 {[%emt 0:21:30]} b5 {[%emt 0:26:39]} 14. d4 {[%emt 0:06:19]} h6 {[%emt 0:05:31]} 15. Be3 {[%emt 0:03:10]} c5 {[%emt 0:08:30]} 16. Qd2 {[%emt 0:11:56]} Qb7 {[%emt 0:09:24]} 17. a3 {[%emt 0:21:25]} Rfe8 {[%emt 0:03:48]} 18. Rad1 {[%emt 0:03:30]} cxd4 {[%emt 0:02:01]} 19. cxd4 {[%emt 0:00:10]} Rac8 {[%emt 0:00:14]} 20. Rc1 {[%emt 0:02:27]} Red8 {[%emt 0:01:13]} 21. Bb1 {[%emt 0:06:32]} Bc4 {[%emt 0:01:44]} 22. Red1 {[%emt 0:05:22]} Bb6 {[%emt 0:02:26]} 23. Qe1 {[%emt 0:00:54]} a5 {[%emt 0:01:02]} 24. Bd2 {[%emt 0:02:07]} Qa7 {[%emt 0:02:03]} 25. Bc3 {[%emt 0:01:12]} Bb3 {[%emt 0:02:24]} 26. Rd2 {[%emt 0:02:31]} Re8 {[%emt 0:03:34]} 27. dxe5 {[%emt 0:04:47]} dxe5 {[%emt 0:00:21]} 28. Nf5 {[%emt 0:00:03]} Rc5 {[%emt 0:01:19]} 29. Nd6 {[%emt 0:00:43]} Re6 {[%emt 0:00:14]} 30. Qe2 {[%emt 0:00:11]} b4 {[%emt 0:00:27]} 31. Rdd1 {[%emt 0:01:18]} bxc3 {[%emt 0:00:13]} 32. Rd3 {[%emt 0:00:13]} Nf4 {[%emt 0:00:22]} 0-1

[Event "74th Superior Womens Argentine-ch 2023"]
[Site "Buenos Aires"]
[Date "2023.11.24"]
[Round "4.4"]
[White "Gaite, Karen Nerina"]
[Black "Adam, Ernestina"]
[Result "0-1"]
[ECO "A22"]
[WhiteElo "1871"]
[BlackElo "2036"]
[Annotator "NA RC"]
[PlyCount "44"]
[EventDate "2023.11.20"]
[EventType "swiss"]
[EventCountry "ARG"]
[SourceTitle "playchess.com"]
[Source "ChessBase"]
[SourceQuality "1"]
[TimeControl "5400+30"]

1. c4 {[%emt 0:01:49]} e5 {[%emt 0:00:13]} 2. Nc3 {[%emt 0:00:22]} Nf6 {[%emt 0:00:26]} 3. g3 {[%emt 0:00:28]} d5 {[%emt 0:00:23]} 4. cxd5 {[%emt 0:00:28]} Nxd5 {[%emt 0:00:23]} 5. Bg2 {[%emt 0:00:11]} Nf6 {[%emt 0:01:21]} 6. d3 {[%emt 0:01:04]} h6 {[%emt 0:02:11]} 7. Nf3 {[%emt 0:01:22]} Nc6 {[%emt 0:00:25]} 8. O-O {[%emt 0:00:38]} Be7 {[%emt 0:01:17]} 9. b3 {[%emt 0:04:34]} O-O {[%emt 0:03:17]} 10. Bb2 {[%emt 0:00:08]} Be6 {[%emt 0:02:42]} 11. Rc1 {[%emt 0:01:58]} Re8 {[%emt 0:05:23]} 12. Na4 {[%emt 0:06:43]} Nd7 {[%emt 0:12:45]} 13. d4 {[%emt 0:14:07]} exd4 {[%emt 0:04:47]} 14. Rxc6 {[%emt 0:08:15]} bxc6 {[%emt 0:01:36]} 15. Nxd4 {[%emt 0:00:27]} Bf6 {[%emt 0:22:56]} 16. Bxc6 {[%emt 0:19:57]} Bh3 {[%emt 0:04:57]} 17. Re1 {[%emt 0:07:38]} Rb8 {[%emt 0:01:12]} 18. e4 {[%emt 0:02:33]} Bxd4 {[%emt 0:15:00]} 19. Bxd4 {[%emt 0:09:20]} Ne5 {[%emt 0:09:47]} 20. Bxe5 {[%emt 0:02:36]} Rxe5 {[%emt 0:03:13]} 21. Qc2 {[%emt 0:06:14]} Re6 {[%emt 0:02:20]} 22. Bd5 {[%emt 0:05:27]} Qxd5 {[%emt 0:00:40]} 0-1

[Event "74th Superior Womens Argentine-ch 2023"]
[Site "Buenos Aires"]
[Date "2023.11.24"]
[Round "4.5"]
[White "Donda, Jazmin"]
[Black "Nejanky, Maisa"]
[Result "1-0"]
[ECO "A59"]
[WhiteElo "1825"]
[BlackElo "1951"]
[Annotator "NA RC"]
[PlyCount "111"]
[EventDate "2023.11.20"]
[EventType "swiss"]
[EventCountry "ARG"]
[SourceTitle "playchess.com"]
[Source "ChessBase"]
[SourceQuality "1"]
[TimeControl "5400+30"]

1. d4 {[%emt 0:00:02]} Nf6 {[%emt 0:00:21]} 2. c4 {[%emt 0:00:14]} c5 {[%emt 0:00:20]} 3. d5 {[%emt 0:00:07]} b5 {[%emt 0:00:05]} 4. cxb5 {[%emt 0:00:05]} a6 {[%emt 0:00:05]} 5. bxa6 {[%emt 0:00:14]} g6 {[%emt 0:00:23]} 6. Nc3 {[%emt 0:00:06]} Bxa6 {[%emt 0:00:09]} 7. e4 {[%emt 0:00:15]} Bxf1 {[%emt 0:00:06]} 8. Kxf1 {[%emt 0:00:08]} d6 {[%emt 0:00:06]} 9. g3 {[%emt 0:00:12]} Bg7 {[%emt 0:00:14]} 10. Kg2 {[%emt 0:00:08]} Nbd7 {[%emt 0:00:10]} 11. Nf3 {[%emt 0:00:09]} Qb6 {[%emt 0:07:56]} 12. Re1 {[%emt 0:00:27]} O-O {[%emt 0:04:45]} 13. h3 {[%emt 0:04:08]} Qb7 {[%emt 0:03:55]} 14. Qc2 {[%emt 0:03:03]} Nb6 {[%emt 0:13:07]} 15. a4 {[%emt 0:01:15]} Nfd7 {[%emt 0:34:00]} 16. Ra2 {[%emt 0:37:43]} Nc4 {[%emt 0:20:21]} 17. b3 {[%emt 0:10:55]} Nce5 {[%emt 0:03:34]} 18. Nd2 {[%emt 0:08:48]} c4 {[%emt 0:03:29]} 19. bxc4 {[%emt 0:09:35]} Rfc8 {[%emt 0:04:39]} 20. Nd1 {[%emt 0:03:40]} Nb6 {[%emt 0:01:33]} 21. Ne3 {[%emt 0:05:26]} Qa6 {[%emt 0:00:06]} 22. a5 {[%emt 0:04:20]} Nbxc4 {[%emt 0:00:30]} 23. Ndxc4 {[%emt 0:00:39]} Nxc4 {[%emt 0:00:07]} 24. Nxc4 {[%emt 0:00:13]} Rxc4 {[%emt 0:01:04]} 25. Qe2 {[%emt 0:00:59]} Rac8 {[%emt 0:01:03]} 26. Bf4 {[%emt 0:01:39]} Qa7 {[%emt 0:00:42]} 27. Be3 {[%emt 0:03:41]} Qd7 {[%emt 0:00:24]} 28. Bb6 {[%emt 0:01:08]} f5 {[%emt 0:00:31]} 29. exf5 {[%emt 0:00:48]} Qxf5 {[%emt 0:00:10]} 30. Qe6+ {[%emt 0:00:44]} Qxe6 {[%emt 0:00:28]} 31. Rxe6 {[%emt 0:00:07]} Kf7 {[%emt 0:00:46]} 32. a6 {[%emt 0:03:17]} Rb4 {[%emt 0:00:29]} 33. Be3 {[%emt 0:01:29]} Rb5 {[%emt 0:00:24]} 34. Rd2 {[%emt 0:00:39]} Ra5 {[%emt 0:00:41]} 35. a7 {[%emt 0:00:30]} Be5 {[%emt 0:00:42]} 36. f4 {[%emt 0:00:46]} Bf6 {[%emt 0:00:28]} 37. g4 {[%emt 0:00:34]} Rc3 {[%emt 0:00:16]} 38. g5 {[%emt 0:00:28]} Bg7 {[%emt 0:00:28]} 39. h4 {[%emt 0:00:36]} Rca3 {[%emt 0:00:31]} 40. h5 {[%emt 0:00:35]} Rxd5 {[%emt 0:00:45]} 41. Rxe7+ {[%emt 0:00:20]} Kxe7 {[%emt 0:00:07]} 42. Rxd5 {[%emt 0:00:07]} Ke6 {[%emt 0:00:22]} 43. Rb5 {[%emt 0:00:17]} d5 {[%emt 0:00:25]} 44. h6 {[%emt 0:00:24]} Ra2+ {[%emt 0:01:06]} 45. Kf1 {[%emt 0:00:48]} Bc3 {[%emt 0:00:28]} 46. Rb8 {[%emt 0:00:34]} d4 {[%emt 0:00:30]} 47. a8=Q {[%emt 0:00:35]} Rxa8 {[%emt 0:00:16]} 48. Rxa8 {[%emt 0:00:04]} dxe3 {[%emt 0:00:10]} 49. Ke2 {[%emt 0:00:08]} Bd4 {[%emt 0:00:20]} 50. Kf3 {[%emt 0:00:25]} Kf5 {[%emt 0:00:36]} 51. Rf8+ {[%emt 0:00:11]} Ke6 {[%emt 0:00:09]} 52. Rb8 {[%emt 0:00:54]} Kf5 {[%emt 0:00:20]} 53. Rb5+ {[%emt 0:00:15]} Ke6 {[%emt 0:00:06]} 54. Rb7 {[%emt 0:00:08]} Kf5 {[%emt 0:00:19]} 55. Rf7+ {[%emt 0:00:05]} Ke6 {[%emt 0:00:07]} 56. Rxh7 {[%emt 0:00:04]} 1-0

[Event "74th Superior Womens Argentine-ch 2023"]
[Site "Buenos Aires"]
[Date "2023.11.25"]
[Round "5.1"]
[White "Sarquis, Maria Belen"]
[Black "Brizzi, Milagros Tatiana"]
[Result "0-1"]
[ECO "B12"]
[WhiteElo "2194"]
[BlackElo "2076"]
[Annotator "ChessBase"]
[PlyCount "36"]
[EventDate "2023.11.20"]
[EventType "swiss"]
[EventCountry "ARG"]
[SourceTitle "playchess.com"]
[Source "ChessBase"]
[SourceQuality "1"]
[TimeControl "5400+30"]

1. e4 {[%emt 0:08:21]} c6 {[%emt 0:00:11]} 2. d4 {[%emt 0:00:09]} d5 {[%emt 0:00:11]} 3. e5 {[%emt 0:00:07]} c5 {[%emt 0:00:08]} 4. Nf3 {[%emt 0:00:23]} cxd4 {[%emt 0:00:18]} 5. Nxd4 {[%emt 0:00:43]} Nc6 {[%emt 0:01:57]} 6. Nxc6 {[%emt 0:00:14]} bxc6 {[%emt 0:00:08]} 7. Bd3 {[%emt 0:00:12]} e6 {[%emt 0:01:40]} 8. O-O {[%emt 0:01:13]} Ne7 {[%emt 0:03:20]} 9. Nd2 {[%emt 0:03:09]} Ng6 {[%emt 0:01:43]} 10. Nf3 {[%emt 0:00:41]} Be7 {[%emt 0:02:54]} 11. c3 {[%emt 0:01:19]} O-O {[%emt 0:06:16]} 12. Qa4 {[%emt 0:00:29]} Bd7 {[%emt 0:08:09]} 13. Qg4 {[%emt 0:00:11]} f5 {[%emt 0:10:03]} 14. exf6 {[%emt 0:09:35]} Rxf6 {[%emt 0:00:36]} 15. Bg5 {[%emt 0:07:50]} e5 {[%emt 0:03:04]} 16. Qh5 {[%emt 0:05:24]} e4 {[%emt 0:05:15]} 17. Bxf6 {[%emt 0:03:43]} Bxf6 {[%emt 0:00:13]} 18. Bc2 {[%emt 0:00:49]} Nf4 {[%emt 0:00:40]} 0-1

[Event "74th Superior Womens Argentine-ch 2023"]
[Site "Buenos Aires"]
[Date "2023.11.25"]
[Round "5.2"]
[White "Adam, Ernestina"]
[Black "Borda Rodas, Anapaola S."]
[Result "1-0"]
[ECO "C54"]
[WhiteElo "2036"]
[BlackElo "2261"]
[Annotator "RC"]
[PlyCount "65"]
[EventDate "2023.11.20"]
[EventType "swiss"]
[EventCountry "ARG"]
[SourceTitle "playchess.com"]
[Source "ChessBase"]
[SourceQuality "1"]
[TimeControl "5400+30"]

1. e4 {[%emt 0:00:08]} e5 {[%emt 0:00:28]} 2. Nf3 {[%emt 0:00:26]} Nc6 {[%emt 0:00:07]} 3. Bc4 {[%emt 0:00:45]} Bc5 {[%emt 0:00:30]} 4. c3 {[%emt 0:00:44]} Nf6 {[%emt 0:00:10]} 5. d4 {[%emt 0:00:44]} exd4 {[%emt 0:02:45]} 6. b4 {[%emt 0:01:55]} Be7 {[%emt 0:06:55]} 7. e5 {[%emt 0:05:48]} Ne4 {[%emt 0:00:55]} 8. b5 {[%emt 0:04:58]} Na5 {[%emt 0:05:36]} 9. Bd3 {[%emt 0:00:51]} Nxc3 {[%emt 0:01:24]} 10. Nxc3 {[%emt 0:00:37]} dxc3 {[%emt 0:00:05]} 11. Qa4 {[%emt 0:04:45]} b6 {[%emt 0:03:30]} 12. O-O {[%emt 0:01:17]} d5 {[%emt 0:11:21]} 13. Nd4 {[%emt 0:11:51]} O-O {[%emt 0:03:22]} 14. Qc2 {[%emt 0:13:34]} Kh8 {[%emt 0:08:07]} 15. Be3 {[%emt 0:07:03]} Nc4 {[%emt 0:03:14]} 16. Bxc4 {[%emt 0:06:27]} dxc4 {[%emt 0:00:08]} 17. Rad1 {[%emt 0:03:12]} Qe8 {[%emt 0:02:59]} 18. f4 {[%emt 0:03:44]} Bc5 {[%emt 0:02:29]} 19. Qe4 {[%emt 0:03:43]} Bg4 {[%emt 0:02:45]} 20. Rc1 {[%emt 0:02:36]} f5 {[%emt 0:00:20]} 21. Qc2 {[%emt 0:01:43]} a6 {[%emt 0:00:43]} 22. a4 {[%emt 0:07:50]} axb5 {[%emt 0:00:52]} 23. axb5 {[%emt 0:00:02]} Qd7 {[%emt 0:01:57]} 24. Qf2 {[%emt 0:01:58]} Rfd8 {[%emt 0:01:20]} 25. Nc6 {[%emt 0:07:00]} Bxe3 {[%emt 0:01:32]} 26. Qxe3 {[%emt 0:00:02]} Qd2 {[%emt 0:01:03]} 27. Rxc3 {[%emt 0:02:47]} Ra2 {[%emt 0:00:09]} 28. Qg3 {[%emt 0:00:56]} Rd3 {[%emt 0:02:12]} 29. Rxd3 {[%emt 0:00:01]} cxd3 {[%emt 0:00:04]} 30. h3 {[%emt 0:01:43]} Be2 {[%emt 0:01:25]} 31. Qh4 {[%emt 0:04:04]} h6 {[%emt 0:01:51]} 32. Qd8+ {[%emt 0:00:48]} Kh7 {[%emt 0:00:08]} 33. Ne7 {[%emt 0:00:40]} 1-0

[Event "74th Superior Womens Argentine-ch 2023"]
[Site "Buenos Aires"]
[Date "2023.11.25"]
[Round "5.3"]
[White "Campos, Maria Jose"]
[Black "Donda, Jazmin"]
[Result "1-0"]
[ECO "A12"]
[WhiteElo "2208"]
[BlackElo "1825"]
[Annotator "RC"]
[PlyCount "101"]
[EventDate "2023.11.20"]
[EventType "swiss"]
[EventCountry "ARG"]
[SourceTitle "playchess.com"]
[Source "ChessBase"]
[SourceQuality "1"]
[TimeControl "5400+30"]

1. c4 {[%emt 0:02:56]} c6 {[%emt 0:00:10]} 2. Nf3 {[%emt 0:02:22]} d5 {[%emt 0:00:08]} 3. g3 {[%emt 0:00:14]} Nf6 {[%emt 0:00:09]} 4. b3 {[%emt 0:02:12]} Bf5 {[%emt 0:00:19]} 5. Bg2 {[%emt 0:01:45]} e6 {[%emt 0:00:10]} 6. O-O {[%emt 0:00:52]} Be7 {[%emt 0:00:37]} 7. Bb2 {[%emt 0:02:02]} h6 {[%emt 0:00:48]} 8. d3 {[%emt 0:00:52]} O-O {[%emt 0:00:11]} 9. Nbd2 {[%emt 0:01:33]} Nbd7 {[%emt 0:05:57]} 10. Qc2 {[%emt 0:01:02]} a5 {[%emt 0:03:30]} 11. a3 {[%emt 0:00:47]} Rc8 {[%emt 0:05:21]} 12. Rab1 {[%emt 0:12:49]} Bh7 {[%emt 0:02:11]} 13. Rfc1 {[%emt 0:06:53]} b5 {[%emt 0:03:20]} 14. Qd1 {[%emt 0:05:59]} Qb6 {[%emt 0:09:29]} 15. cxb5 {[%emt 0:02:31]} cxb5 {[%emt 0:04:31]} 16. Rxc8 {[%emt 0:09:57]} Rxc8 {[%emt 0:00:09]} 17. b4 {[%emt 0:00:20]} axb4 {[%emt 0:05:02]} 18. axb4 {[%emt 0:00:07]} Qb8 {[%emt 0:05:05]} 19. Qb3 {[%emt 0:02:12]} Qd6 {[%emt 0:08:36]} 20. Qa2 {[%emt 0:06:38]} Bd8 {[%emt 0:14:41]} 21. Bh3 {[%emt 0:08:03]} Bb6 {[%emt 0:03:46]} 22. Qa1 {[%emt 0:02:42]} Bc7 {[%emt 0:19:06]} 23. Qa7 {[%emt 0:07:46]} Bb6 {[%emt 0:03:01]} 24. Qa3 {[%emt 0:01:01]} g5 {[%emt 0:04:09]} 25. Nd4 {[%emt 0:07:27]} Bxd4 {[%emt 0:00:58]} 26. Bxd4 {[%emt 0:00:08]} g4 {[%emt 0:00:26]} 27. Bg2 {[%emt 0:00:06]} e5 {[%emt 0:00:04]} 28. Bb2 {[%emt 0:04:02]} e4 {[%emt 0:00:27]} 29. Bd4 {[%emt 0:02:34]} exd3 {[%emt 0:00:33]} 30. exd3 {[%emt 0:00:09]} Qc6 {[%emt 0:01:02]} 31. Bf1 {[%emt 0:05:24]} Qc2 {[%emt 0:00:38]} 32. Qb2 {[%emt 0:00:29]} Qxb2 {[%emt 0:00:25]} 33. Rxb2 {[%emt 0:00:10]} Rc1 {[%emt 0:00:09]} 34. Kg2 {[%emt 0:00:14]} Kf8 {[%emt 0:00:53]} 35. Nb3 {[%emt 0:02:07]} Rc8 {[%emt 0:00:31]} 36. Nc5 {[%emt 0:00:26]} h5 {[%emt 0:00:32]} 37. h3 {[%emt 0:00:19]} Bf5 {[%emt 0:00:07]} 38. hxg4 {[%emt 0:00:11]} hxg4 {[%emt 0:00:08]} 39. Be2 {[%emt 0:00:18]} Ke7 {[%emt 0:00:39]} 40. Ra2 {[%emt 0:00:11]} Rc7 {[%emt 0:00:58]} 41. Ra5 {[%emt 0:00:35]} Ne8 {[%emt 0:00:46]} 42. Rxb5 {[%emt 0:00:20]} Nd6 {[%emt 0:00:12]} 43. Ra5 {[%emt 0:00:24]} Nxc5 {[%emt 0:00:48]} 44. Rxc5 {[%emt 0:00:56]} Rxc5 {[%emt 0:00:44]} 45. Bxc5 {[%emt 0:00:23]} Kd7 {[%emt 0:00:04]} 46. Bxd6 {[%emt 0:00:15]} Kxd6 {[%emt 0:00:04]} 47. d4 {[%emt 0:00:10]} Bd7 {[%emt 0:00:09]} 48. Kf1 {[%emt 0:00:18]} Kc7 {[%emt 0:00:19]} 49. Ke1 {[%emt 0:00:13]} Kb6 {[%emt 0:00:03]} 50. Kd2 {[%emt 0:00:17]} f5 {[%emt 0:00:42]} 51. Bd3 {[%emt 0:00:08]} 1-0

[Event "74th Superior Womens Argentine-ch 2023"]
[Site "Buenos Aires"]
[Date "2023.11.25"]
[Round "5.4"]
[White "Zuriel, Marisa"]
[Black "Flores Mirabal, Nancy"]
[Result "1-0"]
[ECO "B52"]
[WhiteElo "2165"]
[BlackElo "1937"]
[Annotator "RC"]
[PlyCount "78"]
[EventDate "2023.11.20"]
[EventType "swiss"]
[EventCountry "ARG"]
[SourceTitle "playchess.com"]
[Source "ChessBase"]
[SourceQuality "1"]
[TimeControl "5400+30"]

1. e4 {[%emt 0:00:30]} c5 {[%emt 0:03:23]} 2. Nf3 {[%emt 0:00:08]} d6 {[%emt 0:00:13]} 3. Bb5+ {[%emt 0:00:09]} Bd7 {[%emt 0:02:29]} 4. Bxd7+ {[%emt 0:00:16]} Qxd7 {[%emt 0:00:07]} 5. c4 {[%emt 0:00:23]} Nf6 {[%emt 0:01:12]} 6. Nc3 {[%emt 0:00:13]} g6 {[%emt 0:00:24]} 7. d4 {[%emt 0:00:30]} cxd4 {[%emt 0:01:23]} 8. Nxd4 {[%emt 0:00:06]} Bg7 {[%emt 0:00:33]} 9. f3 {[%emt 0:00:22]} Nc6 {[%emt 0:01:03]} 10. Be3 {[%emt 0:00:12]} Rc8 {[%emt 0:01:01]} 11. Nde2 {[%emt 0:00:53]} b6 {[%emt 0:04:16]} 12. O-O {[%emt 0:00:17]} O-O {[%emt 0:00:10]} 13. Qd2 {[%emt 0:00:18]} Rfd8 {[%emt 0:02:21]} 14. Rfd1 {[%emt 0:08:24]} e6 {[%emt 0:15:24]} 15. Bg5 {[%emt 0:10:22]} a6 {[%emt 0:15:30]} 16. Rac1 {[%emt 0:09:26]} Ne5 {[%emt 0:06:13]} 17. b3 {[%emt 0:04:40]} b5 {[%emt 0:02:29]} 18. cxb5 {[%emt 0:01:15]} axb5 {[%emt 0:00:04]} 19. h3 {[%emt 0:00:24]} Qb7 {[%emt 0:02:03]} 20. Qe1 {[%emt 0:21:19]} b4 {[%emt 0:08:23]} 21. Na4 {[%emt 0:00:11]} Rxc1 {[%emt 0:01:11]} 22. Nxc1 {[%emt 0:00:18]} h6 {[%emt 0:05:36]} 23. Bd2 {[%emt 0:00:57]} Nc6 {[%emt 0:04:30]} 24. Nd3 {[%emt 0:02:53]} Rb8 {[%emt 0:03:41]} 25. Rc1 {[%emt 0:04:21]} d5 {[%emt 0:00:44]} 26. e5 {[%emt 0:01:20]} Nd7 {[%emt 0:00:46]} 27. f4 {[%emt 0:00:13]} Bf8 {[%emt 0:01:02]} 28. Kh2 {[%emt 0:00:28]} Qb5 {[%emt 0:02:17]} 29. Nf2 {[%emt 0:06:26]} Nc5 {[%emt 0:02:20]} 30. Nxc5 {[%emt 0:01:22]} Bxc5 {[%emt 0:00:03]} 31. Ng4 {[%emt 0:00:09]} Bf8 {[%emt 0:02:48]} 32. f5 {[%emt 0:09:51]} Nd4 {[%emt 0:08:31]} 33. fxg6 {[%emt 0:05:03]} fxg6 {[%emt 0:00:51]} 34. Bxh6 {[%emt 0:00:18]} Be7 {[%emt 0:01:43]} 35. Qd2 {[%emt 0:02:17]} Nf5 {[%emt 0:01:01]} 36. Bg5 {[%emt 0:00:17]} Qb7 {[%emt 0:01:57]} 37. Bf6 {[%emt 0:02:39]} Bxf6 {[%emt 0:00:42]} 38. Nxf6+ {[%emt 0:00:13]} Kf7 {[%emt 0:00:19]} 39. g4 {[%emt 0:02:09]} Ng7 {[%emt 0:01:17]} 1-0

[Event "74th Superior Womens Argentine-ch 2023"]
[Site "Buenos Aires"]
[Date "2023.11.25"]
[Round "5.5"]
[White "Nejanky, Maisa"]
[Black "Montiel Marin, Micaela Agustina"]
[Result "1-0"]
[ECO "B90"]
[WhiteElo "1951"]
[BlackElo "1631"]
[Annotator "RC"]
[PlyCount "81"]
[EventDate "2023.11.20"]
[EventType "swiss"]
[EventCountry "ARG"]
[SourceTitle "playchess.com"]
[Source "ChessBase"]
[SourceQuality "1"]
[TimeControl "5400+30"]

1. e4 {[%emt 0:00:52]} c5 {[%emt 0:00:07]} 2. Nf3 {[%emt 0:00:17]} d6 {[%emt 0:00:10]} 3. d4 {[%emt 0:00:24]} cxd4 {[%emt 0:00:06]} 4. Nxd4 {[%emt 0:00:04]} Nf6 {[%emt 0:00:08]} 5. Nc3 {[%emt 0:00:04]} a6 {[%emt 0:00:12]} 6. h3 {[%emt 0:06:22]} e5 {[%emt 0:01:15]} 7. Nde2 {[%emt 0:00:06]} h5 {[%emt 0:00:11]} 8. Bg5 {[%emt 0:00:45]} Be6 {[%emt 0:02:20]} 9. Bxf6 {[%emt 0:01:31]} Qxf6 {[%emt 0:00:16]} 10. Nd5 {[%emt 0:00:50]} Qd8 {[%emt 0:01:43]} 11. Nec3 {[%emt 0:02:33]} Nd7 {[%emt 0:02:15]} 12. Be2 {[%emt 0:00:31]} g6 {[%emt 0:03:37]} 13. a4 {[%emt 0:01:17]} Rc8 {[%emt 0:07:21]} 14. O-O {[%emt 0:06:00]} Nb6 {[%emt 0:06:13]} 15. a5 {[%emt 0:12:23]} Nxd5 {[%emt 0:12:11]} 16. Nxd5 {[%emt 0:02:01]} Qg5 {[%emt 0:05:21]} 17. Ra3 {[%emt 0:09:21]} Bxd5 {[%emt 0:06:08]} 18. Qxd5 {[%emt 0:03:23]} Qe7 {[%emt 0:00:51]} 19. Rb3 {[%emt 0:02:27]} Rc7 {[%emt 0:09:43]} 20. Rd1 {[%emt 0:34:14]} Qd7 {[%emt 0:09:00]} 21. Rdd3 {[%emt 0:11:46]} Be7 {[%emt 0:11:45]} 22. Rdc3 {[%emt 0:01:01]} Rxc3 {[%emt 0:09:39]} 23. bxc3 {[%emt 0:00:12]} Qc6 {[%emt 0:02:46]} 24. Qxc6+ {[%emt 0:03:30]} bxc6 {[%emt 0:00:02]} 25. Rb8+ {[%emt 0:00:06]} Bd8 {[%emt 0:00:06]} 26. Bxa6 {[%emt 0:00:11]} Kd7 {[%emt 0:02:42]} 27. Rb7+ {[%emt 0:01:01]} Bc7 {[%emt 0:00:16]} 28. Bc4 {[%emt 0:00:26]} Rf8 {[%emt 0:01:47]} 29. a6 {[%emt 0:00:18]} f6 {[%emt 0:00:28]} 30. Be6+ {[%emt 0:00:49]} Kxe6 {[%emt 0:00:08]} 31. Rxc7 {[%emt 0:00:05]} Ra8 {[%emt 0:00:29]} 32. a7 {[%emt 0:00:34]} c5 {[%emt 0:00:30]} 33. c4 {[%emt 0:00:24]} f5 {[%emt 0:00:22]} 34. f3 {[%emt 0:00:33]} fxe4 {[%emt 0:01:10]} 35. fxe4 {[%emt 0:00:04]} Kf6 {[%emt 0:00:08]} 36. Kf2 {[%emt 0:00:24]} Kg5 {[%emt 0:02:04]} 37. Rf7 {[%emt 0:00:54]} Kh4 {[%emt 0:01:01]} 38. Kf3 {[%emt 0:01:09]} Kg5 {[%emt 0:01:24]} 39. g3 {[%emt 0:00:32]} Kh6 {[%emt 0:04:05]} 40. g4 {[%emt 0:00:30]} h4 {[%emt 0:00:00]} 41. Ke3 {[%emt 0:00:15]} 1-0

[Event "74th Superior Womens Argentine-ch 2023"]
[Site "Buenos Aires"]
[Date "2023.11.26"]
[Round "6.1"]
[White "Brizzi, Milagros Tatiana"]
[Black "Adam, Ernestina"]
[Result "1-0"]
[ECO "B90"]
[WhiteElo "2076"]
[BlackElo "2036"]
[Annotator "RC"]
[PlyCount "89"]
[EventDate "2023.11.20"]
[EventType "swiss"]
[EventCountry "ARG"]
[SourceTitle "playchess.com"]
[Source "ChessBase"]
[SourceQuality "1"]
[TimeControl "5400+30"]

1. e4 {[%emt 0:00:03]} c5 {[%emt 0:00:31]} 2. Nf3 {[%emt 0:00:16]} d6 {[%emt 0:00:22]} 3. d4 {[%emt 0:01:18]} cxd4 {[%emt 0:00:26]} 4. Nxd4 {[%emt 0:00:12]} Nf6 {[%emt 0:00:44]} 5. Nc3 {[%emt 0:00:17]} a6 {[%emt 0:01:00]} 6. Be3 {[%emt 0:00:24]} e5 {[%emt 0:01:18]} 7. Nb3 {[%emt 0:00:10]} Be6 {[%emt 0:00:57]} 8. f3 {[%emt 0:00:35]} h5 {[%emt 0:01:17]} 9. Qd2 {[%emt 0:00:28]} Nbd7 {[%emt 0:01:10]} 10. Nd5 {[%emt 0:01:17]} Bxd5 {[%emt 0:02:15]} 11. exd5 {[%emt 0:00:12]} g6 {[%emt 0:01:15]} 12. Na5 {[%emt 0:05:44]} Qc7 {[%emt 0:04:55]} 13. c4 {[%emt 0:02:50]} Bg7 {[%emt 0:05:29]} 14. Be2 {[%emt 0:03:25]} O-O {[%emt 0:04:03]} 15. O-O {[%emt 0:01:28]} e4 {[%emt 0:00:37]} 16. b4 {[%emt 0:06:59]} exf3 {[%emt 0:02:34]} 17. gxf3 {[%emt 0:03:46]} Ne5 {[%emt 0:14:56]} 18. c5 {[%emt 0:18:22]} Rfd8 {[%emt 0:15:22]} 19. Rad1 {[%emt 0:03:12]} Kh7 {[%emt 0:08:05]} 20. Kh1 {[%emt 0:11:14]} Rd7 {[%emt 0:06:24]} 21. c6 {[%emt 0:10:05]} bxc6 {[%emt 0:00:28]} 22. dxc6 {[%emt 0:00:07]} Rdd8 {[%emt 0:06:25]} 23. Rc1 {[%emt 0:01:21]} d5 {[%emt 0:05:52]} 24. Bf4 {[%emt 0:07:53]} h4 {[%emt 0:02:09]} 25. Rc5 {[%emt 0:04:48]} Bf8 {[%emt 0:04:08]} 26. Rcc1 {[%emt 0:01:02]} Nh5 {[%emt 0:01:37]} 27. Bg5 {[%emt 0:03:13]} f6 {[%emt 0:00:51]} 28. Bf4 {[%emt 0:08:45]} d4 {[%emt 0:04:31]} 29. a3 {[%emt 0:02:49]} d3 {[%emt 0:01:51]} 30. Bd1 {[%emt 0:01:09]} Bg7 {[%emt 0:03:12]} 31. Rc3 {[%emt 0:00:55]} Nxf4 {[%emt 0:00:42]} 32. Qxf4 {[%emt 0:00:02]} Bh6 {[%emt 0:00:29]} 33. Qxf6 {[%emt 0:01:25]} Rf8 {[%emt 0:00:20]} 34. Qxh4 {[%emt 0:00:09]} Rae8 {[%emt 0:00:37]} 35. f4 {[%emt 0:00:42]} g5 {[%emt 0:00:24]} 36. Qh3 {[%emt 0:00:26]} gxf4 {[%emt 0:00:34]} 37. Nb7 {[%emt 0:01:01]} Qb6 {[%emt 0:00:35]} 38. Rxd3 {[%emt 0:00:45]} Qxc6+ {[%emt 0:00:31]} 39. Bf3 {[%emt 0:00:06]} Qc4 {[%emt 0:00:33]} 40. Rd6 {[%emt 0:00:33]} Nf7 {[%emt 0:00:11]} 41. Bd5 {[%emt 0:00:54]} Qc7 {[%emt 0:00:45]} 42. Bxf7 {[%emt 0:00:29]} Qxb7+ {[%emt 0:00:01]} 43. Bd5 {[%emt 0:00:08]} Qg7 {[%emt 0:00:54]} 44. Rg1 {[%emt 0:00:20]} Qxg1+ {[%emt 0:00:38]} 45. Kxg1 {[%emt 0:00:02]} 1-0